lending/lending_fUSD_20250808
["ID","MTS","AMOUNT","RATE_DAILY","PERIOD"]
[377913913,1754613110232,-400.0,0.00020821,2]
[377913914,1754613110242,-400.0,0.00020821,2]
[377913915,1754613110251,-400.0,0.00020821,2]
[377913916,1754613110261,-1736.77,0.00020821,2]
[377913917,1754613110270,-723.41,0.00020821,2]
[377913918,1754613110280,-1506.04,0.00020821,2]
[377913919,1754613110290,-304.07,0.00020821,2]
[377913920,1754613110299,-1196.36,0.00020821,2]
[377913921,1754613110309,-1222.43,0.00020821,2]
[377913922,1754613110319,-2004.13,0.00020821,2]
[377913923,1754613110329,-444.47,0.00020821,2]
[377913924,1754613110338,-554.57,0.00020821,2]
[377913925,1754613110347,-1393.06,0.00020821,2]
[377913926,1754613110357,-2031.25,0.00020821,2]
[377913927,1754613110368,-1109.06,0.00020821,2]
[377913928,1754613110378,-624.86,0.00020821,2]
[377913929,1754613110388,-1290.07,0.00020821,2]
[377913930,1754613110398,-1460.91,0.00020821,2]
[377913931,1754613110408,-2592.74,0.00020821,2]
[377913932,1754613110417,-2666.29,0.00020821,2]
[377913933,1754613110427,-469.16,0.00020821,2]
[377913934,1754613110436,-2043.58,0.00020821,2]
[377913935,1754613110445,-1164.41,0.00020821,2]
[377913936,1754613110455,-1333.93,0.00020821,2]
[377913937,1754613110465,-694.8,0.00020821,2]
[377913938,1754613110475,-400.0,0.00020821,2]
[377913939,1754613110484,-750.53,0.00020821,2]
[377913940,1754613110494,-337.6500197,0.00020821,2]
[377913941,1754613110505,-631.92,0.00020821,2]
[377913942,1754613110514,-518.35,0.00020821,2]
[377913943,1754613110525,-1164.69,0.00020821,2]
[377913944,1754613110535,-2811.47,0.00020821,2]
[377913945,1754613110545,-465.25,0.00020821,2]
[377913946,1754613110554,-543.99,0.00020821,2]
[377913947,1754613110564,-680.98,0.00020821,2]
[377913948,1754613110573,-1133.55,0.00020821,2]
[377913949,1754613110583,-1818.01,0.00020821,2]
[377913950,1754613110593,-400.0,0.00020821,2]
[377913951,1754613110604,-400.0,0.00020821,2]
[377913952,1754613110615,-1383.67,0.00020821,2]
[377913953,1754613110624,-4407.12,0.00020821,2]
[377913954,1754613110633,-1288.12,0.00020821,2]
[377913955,1754613110641,-1714.38,0.00020821,2]
[377913956,1754613110651,-1275.65,0.00020821,2]
[377913957,1754613110661,-1117.23,0.00020821,2]
[377913958,1754613110671,-961.95,0.00020821,2]
[377913959,1754613110681,-400.0,0.00020821,2]
[377913960,1754613110690,-453.21,0.00020821,2]
[377913961,1754613110699,-400.0,0.00020821,2]
[377913962,1754613110708,-879.97,0.00020821,2]
[377913963,1754613110718,-633.58,0.00020821,2]
[377913964,1754613110728,-1989.79,0.00020821,2]
[377913965,1754613110737,-1604.94,0.00020821,2]
[377913966,1754613110747,-400.0,0.00020821,2]
[377913967,1754613110756,-1105.6,0.00020821,2]
[377913968,1754613110765,-426.59,0.00020821,2]
[377913969,1754613110775,-1061.62,0.00020821,2]
[377913970,1754613110785,-446.1,0.00020821,2]
[377913971,1754613110794,-400.0,0.00020821,2]
[377913972,1754613110805,-2286.48,0.00020821,2]
[377913973,1754613110815,-1419.58,0.00020821,2]
[377913974,1754613110824,-608.07,0.00020821,2]
[377913975,1754613110834,-1349.34,0.00020821,2]
[377913976,1754613110843,-400.0,0.00020821,2]
[377913977,1754613110853,-1214.9,0.00020821,2]
[377913978,1754613110870,-994.63,0.00020821,2]
[377913979,1754613110880,-2503.56,0.00020821,2]
[377913980,1754613110890,-400.0,0.00020821,2]
[377913981,1754613110901,-400.0,0.00020821,2]
[377913982,1754613110911,-668.68,0.00020821,2]
[377913983,1754613110921,-2034.76,0.00020821,2]
[377913984,1754613110932,-1276.94,0.00020821,2]
[377913985,1754613110944,-578.7,0.00020821,2]
[377913986,1754613110955,-1528.92,0.00020821,2]
[377913987,1754613110966,-400.0,0.00020821,2]
[377913988,1754613110976,-400.0,0.00020821,2]
[377913989,1754613110986,-1646.26,0.00020821,2]
[377913990,1754613110997,-1889.62,0.00020821,2]
[377913991,1754613111007,-2128.65,0.00020821,2]
[377913992,1754613111018,-1025.64,0.00020821,2]
[377913993,1754613111028,-1501.0,0.00020821,2]
[377913994,1754613111038,-1492.79,0.00020821,2]
[377913995,1754613111048,-547.41,0.00020821,2]
[377913996,1754613111059,-1086.24,0.00020821,2]
[377913997,1754613111069,-400.0,0.00020821,2]
[377913998,1754613111079,-400.0,0.00020821,2]
[377913999,1754613111089,-607.0,0.00020821,2]
[377914000,1754613111098,-1345.75,0.00020821,2]
[377914001,1754613111109,-420.32,0.00020821,2]
[377914002,1754613111121,-1120.37,0.00020821,2]
[377914003,1754613111131,-489.48,0.00020821,2]
[377914004,1754613111141,-1434.86,0.00020821,2]
[377914005,1754613111151,-400.0,0.00020821,2]
[377914006,1754613111163,-1951.53,0.00020821,2]
[377914007,1754613111173,-917.26,0.00020821,2]
[377914008,1754613111183,-2325.69,0.00020821,2]
[377914009,1754613111193,-1376.02,0.00020821,2]
[377914010,1754613111203,-220.23369138,0.00020821,2]
[377914011,1754613111214,-1065.9,0.00020821,2]
[377914012,1754613111224,-1350.78,0.00020821,2]
[377914013,1754613111234,-1151.09,0.00020821,2]
[377914014,1754613111246,-451.49,0.00020821,2]
[377914015,1754613111256,-400.0,0.00020821,2]
[377914016,1754613111267,-400.0,0.00020821,2]
[377914017,1754613111277,-1657.63,0.00020821,2]
[377914018,1754613111287,-1826.78,0.00020821,2]
[377914019,1754613111296,-1848.96,0.00020821,2]
[377914020,1754613111306,-1409.09,0.00020821,2]
[377914021,1754613111316,-400.0,0.00020821,2]
[377914022,1754613111326,-400.0,0.00020821,2]
[377914023,1754613111335,-400.0,0.00020821,2]
[377914024,1754613111345,-400.0,0.00020821,2]
[377914025,1754613111355,-1400.02,0.00020821,2]
[377914026,1754613111367,-608.66,0.00020821,2]
[377914027,1754613111376,-2074.91,0.00020821,2]
[377914028,1754613111386,-1588.59,0.00020821,2]
[377914029,1754613111396,-400.0,0.00020821,2]
[377914030,1754613111406,-2222.15,0.00020821,2]
[377914031,1754613111416,-1481.84,0.00020821,2]
[377914032,1754613111426,-1119.1,0.00020821,2]
[377914033,1754613111436,-880.06,0.00020821,2]
[377914034,1754613111446,-1688.74,0.00020821,2]
[377914035,1754613111456,-1888.11,0.00020821,2]
[377914036,1754613111466,-1345.58,0.00020821,2]
[377914037,1754613111476,-2547.87,0.00020821,2]
[377914038,1754613111487,-400.0,0.00020821,2]
[377914039,1754613111497,-1803.23,0.00020821,2]
[377914040,1754613111507,-3553.23,0.00020821,2]
[377914041,1754613111518,-3068.61,0.00020821,2]
[377914042,1754613111532,-846.92,0.00020821,2]
[377914043,1754613111543,-400.0,0.00020821,2]
[377914044,1754613111553,-1278.15,0.00020821,2]
[377914045,1754613111564,-1857.98,0.00020821,2]
[377914046,1754613111577,-2027.95,0.00020821,2]
[377914047,1754613111587,-2016.9,0.00020821,2]
[377914048,1754613111597,-2106.04,0.00020821,2]
[377914049,1754613111608,-1218.73,0.00020821,2]
[377914050,1754613111620,-1934.76,0.00020821,2]
[377914051,1754613111630,-633.24,0.00020821,2]
[377914052,1754613111640,-881.02,0.00020821,2]
[377914053,1754613111650,-1410.86,0.00020821,2]
[377914054,1754613111660,-400.0,0.00020821,2]
[377914055,1754613111671,-400.0,0.00020821,2]
[377914056,1754613111682,-1461.11,0.00020821,2]
[377914057,1754613111694,-2341.65,0.00020821,2]
[377914058,1754613111704,-400.0,0.00020821,2]
[377914059,1754613111714,-1720.55,0.00020821,2]
[377914060,1754613111724,-1452.03,0.00020821,2]
[377914061,1754613111734,-1620.97,0.00020821,2]
[377914062,1754613111744,-496.68,0.00020821,2]
[377914063,1754613111755,-1617.17,0.00020821,2]
[377914064,1754613111765,-2144.18,0.00020821,2]
[377914065,1754613111776,-2107.78,0.00020821,2]
[377914066,1754613111787,-151.65456681,0.00020821,2]
[377914067,1754613111797,-400.0,0.00020821,2]
[377914068,1754613111808,-749.36,0.00020821,2]
[377914069,1754613111818,-634.15,0.00020821,2]
[377914070,1754613111828,-558.88,0.00020821,2]
[377914071,1754613111838,-400.0,0.00020821,2]
[377914072,1754613111848,-2615.62,0.00020821,2]
[377914073,1754613111863,-1657.01,0.00020821,2]
[377914074,1754613111874,-1646.42,0.00020821,2]
[377914075,1754613111886,-2388.63,0.00020821,2]
[377914076,1754613111897,-400.0,0.00020821,2]
[377914077,1754613111907,-1193.46,0.00020821,2]
[377914078,1754613111918,-1288.88,0.00020821,2]
[377914079,1754613111928,-2350.74,0.00020821,2]
[377914080,1754613111938,-2311.16,0.00020821,2]
[377914081,1754613111948,-2136.59,0.00020821,2]
[377914082,1754613111959,-1822.62,0.00020821,2]
[377914083,1754613111970,-400.0,0.00020821,2]
[377914084,1754613111980,-612.27,0.00020821,2]
[377914085,1754613111991,-1810.11,0.00020821,2]
[377914086,1754613112002,-1369.16,0.00020821,2]
[377914087,1754613112014,-1537.46,0.00020821,2]
[377914088,1754613112024,-511.54,0.00020821,2]
[377914089,1754613112035,-482.95,0.00020821,2]
[377914090,1754613112045,-1248.2,0.00020821,2]
[377914091,1754613112056,-400.0,0.00020821,2]
[377914092,1754613112066,-1594.51,0.00020821,2]
[377914093,1754613112076,-1678.28,0.00020821,2]
[377914094,1754613112087,-845.84,0.00020821,2]
[377914095,1754613112097,-5670.63,0.00020821,2]
[377914096,1754613112107,-483.64,0.00020821,2]
[377914097,1754613112118,-1205.01,0.00020821,2]
[377914098,1754613112128,-893.25,0.00020821,2]
[377914099,1754613112138,-663.05,0.00020821,2]
[377914100,1754613112148,-1256.8,0.00020821,2]
[377914101,1754613112159,-2578.27,0.00020821,2]
[377914102,1754613112169,-1440.32,0.00020821,2]
[377914103,1754613112180,-1244.17,0.00020821,2]
[377914104,1754613112190,-2047.45,0.00020821,2]
[377914105,1754613112200,-738.95,0.00020821,2]
[377914106,1754613112210,-575.03,0.00020821,2]
[377914107,1754613112221,-500.07,0.00020821,2]
[377914108,1754613112231,-2097.6,0.00020821,2]
[377914109,1754613112242,-422.96,0.00020821,2]
[377914110,1754613112253,-400.0,0.00020821,2]
[377914111,1754613112264,-1321.01,0.00020821,2]
[377914112,1754613112274,-759.15,0.00020821,2]
[377914113,1754613112284,-400.0,0.00020821,2]
[377914114,1754613112294,-1757.73,0.00020821,2]
[377914115,1754613112304,-400.0,0.00020821,2]
[377914116,1754613112314,-1316.97,0.00020821,2]
[377914117,1754613112325,-1208.59,0.00020821,2]
[377914118,1754613112335,-454.26,0.00020821,2]
[377914119,1754613112345,-3377.08,0.00020821,2]
[377914120,1754613112356,-400.0,0.00020821,2]
[377914121,1754613112368,-1895.55,0.00020821,2]
[377914122,1754613112378,-1206.78,0.00020821,2]
[377914123,1754613112389,-671.01,0.00020821,2]
[377914124,1754613112399,-1065.6,0.00020821,2]
[377914125,1754613112409,-2465.13,0.00020821,2]
[377914126,1754613112420,-400.0,0.00020821,2]
[377914127,1754613112431,-930.4,0.00020821,2]
[377914128,1754613112441,-2359.49,0.00020821,2]
[377914129,1754613112451,-1712.73,0.00020821,2]
[377914130,1754613112462,-486.70249928,0.00020821,2]
[377914131,1754613112472,-916.62,0.00020821,2]
[377914132,1754613112482,-1926.69,0.00020821,2]
[377914133,1754613112493,-400.0,0.00020821,2]
[377914134,1754613112504,-831.18,0.00020821,2]
[377914135,1754613112514,-458.34,0.00020821,2]
[377914136,1754613112525,-1982.51,0.00020821,2]
[377914137,1754613112535,-1225.08,0.00020821,2]
[377914138,1754613112546,-2026.14,0.00020821,2]
[377914139,1754613112558,-785.6,0.00020821,2]
[377914140,1754613112568,-1138.89,0.00020821,2]
[377914141,1754613112579,-1259.99,0.00020821,2]
[377914142,1754613112590,-1835.44,0.00020821,2]
[377914143,1754613112602,-821.3,0.00020821,2]
[377914144,1754613112614,-1205.32,0.00020821,2]
[377914145,1754613112627,-1444.0,0.00020821,2]
[377914146,1754613112637,-517.59,0.00020821,2]
[377914147,1754613112647,-2627.0,0.00020821,2]
[377914148,1754613112658,-1785.88,0.00020821,2]
[377914149,1754613112668,-720.69,0.00020821,2]
[377914150,1754613112678,-400.0,0.00020821,2]
[377914151,1754613112688,-782.04,0.00020821,2]
[377914152,1754613112699,-400.0,0.00020821,2]
[377914153,1754613112710,-1057.29,0.00020821,2]
[377914154,1754613112721,-594.32,0.00020821,2]
[377914155,1754613112732,-737.52,0.00020821,2]
[377914156,1754613112743,-295.00890974,0.00020821,2]
[377914157,1754613112754,-760.17,0.00020821,2]
[377914158,1754613112765,-1256.19,0.00020821,2]
[377914159,1754613112777,-2043.3,0.00020821,2]
[377914160,1754613112788,-1213.52,0.00020821,2]
[377914161,1754613112800,-1429.55,0.00020821,2]
[377914162,1754613112811,-400.0,0.00020821,2]
[377914163,1754613112823,-1326.52,0.00020821,2]
[377914164,1754613112834,-400.0,0.00020821,2]
[377914165,1754613112845,-718.93,0.00020821,2]
[377914166,1754613112859,-400.0,0.00020821,2]
[377914167,1754613112875,-1573.48,0.00020821,2]
[377914168,1754613112886,-2287.32,0.00020821,2]
[377914169,1754613112897,-1328.2,0.00020821,2]
[377914170,1754613112909,-1087.69,0.00020821,2]
[377914171,1754613112920,-400.0,0.00020821,2]
[377914172,1754613112932,-1998.91,0.00020821,2]
[377914173,1754613112944,-400.0,0.00020821,2]
[377914174,1754613112955,-2952.54,0.00020821,2]
[377914175,1754613112967,-1291.71,0.00020821,2]
[377914176,1754613112979,-507.81,0.00020821,2]
[377914177,1754613112991,-1129.91,0.00020821,2]
[377914178,1754613113002,-2109.97,0.00020821,2]
[377914179,1754613113013,-1425.93,0.00020821,2]
[377914180,1754613113025,-921.79,0.00020821,2]
[377914181,1754613113036,-780.96,0.00020821,2]
[377914182,1754613113047,-1165.14,0.00020821,2]
[377914183,1754613113058,-662.71,0.00020821,2]
[377914184,1754613113069,-1164.62,0.00020821,2]
[377914185,1754613113079,-2405.69,0.00020821,2]
[377914186,1754613113090,-620.84,0.00020821,2]
[377914187,1754613113100,-918.26,0.00020821,2]
[377914188,1754613113111,-1258.15,0.00020821,2]
[377914189,1754613113124,-876.19,0.00020821,2]
[377914190,1754613113134,-2947.95,0.00020821,2]
[377914191,1754613113145,-1553.23,0.00020821,2]
[377914192,1754613113155,-478.79,0.00020821,2]
[377914193,1754613113165,-1217.16,0.00020821,2]
[377914194,1754613113175,-2199.42,0.00020821,2]
[377914195,1754613113186,-599.75,0.00020821,2]
[377914196,1754613113196,-21934.36,0.00020821,2]
[377914197,1754613113207,-2212.98,0.00020821,2]
[377914198,1754613113217,-2805.22,0.00020821,2]
[377914199,1754613113227,-1718.94,0.00020821,2]
[377914200,1754613113237,-1128.21,0.00020821,2]
[377914201,1754613113247,-400.0,0.00020821,2]
[377914202,1754613113257,-400.0,0.00020821,2]
[377914203,1754613113268,-454.14,0.00020821,2]
[377914204,1754613113279,-913.11,0.00020821,2]
[377914205,1754613113290,-2525.21,0.00020821,2]
[377914206,1754613113302,-484.16,0.00020821,2]
[377914207,1754613113313,-674.02,0.00020821,2]
[377914208,1754613113323,-1717.22,0.00020821,2]
[377914209,1754613113335,-3589.91,0.00020821,2]
[377914210,1754613113345,-400.0,0.00020821,2]
[377914211,1754613113355,-445.14,0.00020821,2]
[377914212,1754613113368,-1638.11,0.00020821,2]
[377914213,1754613113379,-1662.56,0.00020821,2]
[377914214,1754613113722,-1890.31,0.00020821,2]
[377914215,1754613113733,-820.59,0.00020821,2]
[377914216,1754613113743,-400.0,0.00020821,2]
[377914217,1754613113755,-600.51,0.00020821,2]
[377914218,1754613113764,-1814.44,0.00020821,2]
[377914219,1754613113774,-674.63,0.00020821,2]
[377914220,1754613113785,-2569.88,0.00020821,2]
[377914221,1754613113795,-2338.84,0.00020821,2]
[377914222,1754613113806,-400.0,0.00020821,2]
[377914223,1754613113816,-1179.5,0.00020821,2]
[377914224,1754613113826,-400.0,0.00020821,2]
[377914225,1754613113836,-1234.92,0.00020821,2]
[377914226,1754613113847,-400.0,0.00020821,2]
[377914227,1754613113860,-5688.95,0.00020821,2]
[377914228,1754613113872,-2335.94,0.00020821,2]
[377914229,1754613113882,-400.0,0.00020821,2]
[377914230,1754613113892,-862.72,0.00020821,2]
[377914231,1754613113903,-1880.9,0.00020821,2]
[377914232,1754613113913,-1651.16,0.00020821,2]
[377914233,1754613113923,-400.0,0.00020821,2]
[377914234,1754613113933,-707.51,0.00020821,2]
[377914235,1754613113944,-480.51,0.00020821,2]
[377914236,1754613113953,-1525.3,0.00020821,2]
[377914237,1754613113963,-492.44,0.00020821,2]
[377914238,1754613113974,-400.0,0.00020821,2]
[377914239,1754613113984,-1000.0,0.00020828,2]
[377914240,1754613113994,-2784.54,0.00020853,2]
[377914241,1754613114004,-500.0,0.00020855,2]
[377914242,1754613114014,-1014.1734478,0.00020868,2]
[377914243,1754613114024,-150.0,0.00020873,2]
[377914244,1754613114034,-5000.0,0.00020879,2]
[377914245,1754613114044,-25000.0,0.00020884,2]
[377914246,1754613114055,-2209.02,0.0002089,2]
[377914247,1754613114066,-5625.35,0.00020891,2]
[377914248,1754613114076,-1312.08138137,0.000209,30]
[377914249,1754613114086,-600.0,0.00020907,2]
[377914250,1754613114095,-292.7,0.00020907,2]
[377914251,1754613114104,-287.61899177,0.00020927,2]
[377914252,1754613114112,-8271.47,0.00020951,2]
[377914253,1754613114124,-700.03,0.00020951,2]
[377914254,1754613114133,-5000.0,0.00020972,2]
[377914255,1754613114142,-1167.24512509,0.00021,2]
[377914256,1754613114151,-192.65101948,0.00021,2]
[377914257,1754613114160,-20000.0,0.00021,2]
[377914258,1754613114169,-67457.0,0.00021,14]
[377914259,1754613114182,-200.0,0.00021,2]
[377914260,1754613114190,-4000.0,0.00021,4]
[377914261,1754613114198,-1967.08,0.00021013,2]
[377914262,1754613114206,-177.05,0.00021052,2]
[377914263,1754613114216,-400.0,0.00021077,2]
[377914264,1754613114225,-1770.72,0.00021082,2]
[377914265,1754613114234,-2033.74,0.00021082,2]
[377914266,1754613114243,-400.0,0.00021082,2]
[377914267,1754613114253,-1928.95,0.00021082,2]
[377914268,1754613114262,-1964.46,0.00021082,2]
[377914269,1754613114272,-1517.59,0.00021082,2]
[377914270,1754613114282,-2517.35,0.00021082,2]
[377914271,1754613114290,-3417.84,0.00021082,2]
[377914272,1754613114299,-226.2770895,0.00021094,2]
[377914273,1754613114308,-400.0,0.00021095,2]
[377914274,1754613114316,-400.0,0.00021095,2]
[377914275,1754613114325,-413.9,0.00021095,2]
[377914276,1754613114335,-491.72,0.00021095,2]
[377914277,1754613114344,-400.0,0.00021095,2]
[377914278,1754613114353,-1398.87,0.00021095,2]
[377914279,1754613114361,-1031.25,0.00021095,2]
[377914280,1754613114372,-400.0,0.00021095,2]
[377914281,1754613114380,-400.0,0.00021095,2]
[377914282,1754613114389,-565.33,0.00021095,2]
[377914283,1754613114399,-400.0,0.00021095,2]
[377914284,1754613114407,-400.0,0.00021095,2]
[377914285,1754613114417,-984.93,0.00021095,2]
[377914286,1754613114426,-400.0,0.00021095,2]
[377914287,1754613114435,-1073.05,0.00021095,2]
[377914288,1754613114445,-400.0,0.00021095,2]
[377914289,1754613114455,-1178.77,0.00021095,2]
[377914290,1754613114463,-828.34,0.00021095,2]
[377914291,1754613114472,-400.0,0.00021095,2]
[377914292,1754613114481,-400.0,0.00021095,2]
[377914293,1754613114489,-400.0,0.00021095,2]
[377914294,1754613114498,-400.0,0.00021095,2]
[377914295,1754613114507,-311.19262555,0.00021095,2]
[377914296,1754613114517,-812.28,0.00021095,2]
[377914297,1754613114527,-927.28,0.00021095,2]
[377914298,1754613114537,-400.0,0.00021095,2]
[377914299,1754613114546,-400.0,0.00021095,2]
[377914300,1754613114555,-400.0,0.00021095,2]
[377914301,1754613114563,-953.96,0.00021095,2]
[377914302,1754613114572,-400.0,0.00021095,2]
[377914303,1754613114580,-400.0,0.00021095,2]
[377914304,1754613114588,-861.71,0.00021095,2]
[377914305,1754613114596,-802.6,0.00021095,2]
[377914306,1754613114607,-400.0,0.00021095,2]
[377914307,1754613114617,-580.75,0.00021095,2]
[377914308,1754613114629,-400.0,0.00021095,2]
[377914309,1754613114637,-400.0,0.00021095,2]
[377914310,1754613114648,-571.8,0.00021095,2]
[377914311,1754613114658,-400.0,0.00021095,2]
[377914312,1754613114666,-400.0,0.00021095,2]
[377914313,1754613114674,-1017.49,0.00021095,2]
[377914314,1754613114683,-480.71,0.00021095,2]
[377914315,1754613114691,-400.0,0.00021095,2]
[377914316,1754613114700,-403.89,0.00021095,2]
[377914317,1754613114709,-400.0,0.00021095,2]
[377914318,1754613114717,-400.0,0.00021095,2]
[377914319,1754613114727,-400.0,0.00021095,2]
[377914320,1754613114736,-1379.73,0.00021095,2]
[377914321,1754613114746,-1290.36,0.00021095,2]
[377914322,1754613114755,-400.0,0.00021095,2]
[377914323,1754613114764,-400.0,0.00021095,2]
[377914324,1754613114774,-560.12,0.00021095,2]
[377914325,1754613114783,-165.9,0.00021095,2]
[377914326,1754613114793,-1326.45,0.00021095,2]
[377914327,1754613114802,-1037.58,0.00021095,2]
[377914328,1754613114812,-400.0,0.00021095,2]
[377914329,1754613114822,-570.53,0.00021095,2]
[377914330,1754613114832,-551.88,0.00021095,2]
[377914331,1754613114841,-624.79,0.00021095,2]
[377914332,1754613114851,-459.48,0.00021095,2]
[377914333,1754613114864,-912.6,0.00021095,2]
[377914334,1754613114875,-453.86,0.00021095,2]
[377914335,1754613114886,-845.43,0.00021095,2]
[377914336,1754613114896,-610.33,0.00021095,2]
[377914337,1754613114911,-400.0,0.00021095,2]
[377914338,1754613114925,-1543.29,0.00021095,2]
[377914339,1754613114936,-802.15,0.00021095,2]
[377914340,1754613114947,-405.06,0.00021095,2]
[377914341,1754613114956,-400.0,0.00021095,2]
[377914342,1754613114966,-400.0,0.00021095,2]
[377914343,1754613114976,-1052.0,0.00021095,2]
[377914344,1754613114986,-1340.86,0.00021095,2]
[377914345,1754613114995,-400.0,0.00021095,2]
[377914346,1754613115006,-950.22,0.00021095,2]
[377914347,1754613115015,-903.46,0.00021095,2]
[377914348,1754613115026,-1188.56,0.00021095,2]
[377914349,1754613115036,-400.0,0.00021095,2]
[377914350,1754613115047,-400.0,0.00021095,2]
[377914351,1754613115057,-511.85,0.00021095,2]
[377914352,1754613115068,-502.43,0.00021095,2]
[377914353,1754613115078,-469.08,0.00021095,2]
[377914354,1754613115088,-538.68,0.00021095,2]
[377914355,1754613115100,-431.81,0.00021095,2]
[377914356,1754613115110,-415.03,0.00021095,2]
[377914357,1754613115122,-400.0,0.00021095,2]
[377914358,1754613115132,-482.01829682,0.00021095,2]
[377914359,1754613115142,-400.0,0.00021095,2]
[377914360,1754613115151,-613.1,0.00021095,2]
[377914361,1754613115161,-448.34,0.00021095,2]
[377914362,1754613115171,-400.0,0.00021095,2]
[377914363,1754613115182,-652.84,0.00021095,2]
[377914364,1754613115193,-400.0,0.00021095,2]
[377914365,1754613115203,-400.0,0.00021095,2]
[377914366,1754613115215,-1054.59,0.00021095,2]
[377914367,1754613115225,-606.31,0.00021095,2]
[377914368,1754613115236,-468.72,0.00021095,2]
[377914369,1754613115246,-400.0,0.00021095,2]
[377914370,1754613115256,-560.03,0.00021095,2]
[377914371,1754613115265,-400.0,0.00021095,2]
[377914372,1754613115275,-1129.63,0.00021095,2]
[377914373,1754613115285,-744.37,0.00021095,2]
[377914374,1754613115294,-771.07,0.00021095,2]
[377914375,1754613115305,-1372.41,0.00021095,2]
[377914376,1754613115314,-830.78,0.00021095,2]
[377914377,1754613115324,-643.55,0.00021095,2]
[377914378,1754613115334,-1290.29,0.00021095,2]
[377914379,1754613115344,-400.0,0.00021095,2]
[377914380,1754613115353,-400.0,0.00021095,2]
[377914381,1754613115363,-463.32,0.00021095,2]
[377914382,1754613115375,-400.0,0.00021095,2]
[377914383,1754613115387,-400.0,0.00021095,2]
[377914384,1754613115404,-400.0,0.00021095,2]
[377914385,1754613115414,-400.0,0.00021095,2]
[377914386,1754613115425,-400.0,0.00021095,2]
[377914387,1754613115436,-400.0,0.00021095,2]
[377914388,1754613115446,-792.51,0.00021095,2]
[377914389,1754613115456,-720.13,0.00021095,2]
[377914390,1754613115467,-526.14,0.00021095,2]
[377914391,1754613115477,-690.34,0.00021095,2]
[377914392,1754613115487,-767.24,0.00021095,2]
[377914393,1754613115497,-784.03,0.00021095,2]
[377914394,1754613115506,-619.45,0.00021095,2]
[377914395,1754613115518,-592.46,0.00021095,2]
[377914396,1754613115529,-838.34,0.00021095,2]
[377914397,1754613115540,-400.0,0.00021095,2]
[377914398,1754613115552,-400.0,0.00021095,2]
[377914399,1754613115562,-400.0,0.00021095,2]
[377914400,1754613115573,-430.58,0.00021095,2]
[377914401,1754613115583,-400.0,0.00021095,2]
[377914402,1754613115593,-400.0,0.00021095,2]
[377914403,1754613115603,-400.0,0.00021095,2]
[377914404,1754613115613,-371.64497394,0.00021095,2]
[377914405,1754613115624,-464.66,0.00021095,2]
[377914406,1754613115634,-400.0,0.00021095,2]
[377914407,1754613115643,-887.56,0.00021095,2]
[377914408,1754613115653,-400.0,0.00021095,2]
[377914409,1754613115663,-1398.35,0.00021095,2]
[377914410,1754613115674,-1086.27,0.00021095,2]
[377914411,1754613115686,-1137.31,0.00021095,2]
[377914412,1754613115696,-488.07,0.00021095,2]